bitfinex/quotes_BTCUSD_20220115
["timestamp","ask_amount","ask_price","bid_price","bid_amount"]
[1642281456546,0.04743474,43520.0,43515.0,0.00012033]
[1642281457949,2.2,43518.0,43514.0,0.57567264]
[1642281458149,0.49051523,43517.0,43514.0,0.57567264]
[1642281458348,0.49051523,43517.0,43514.0,0.53027264]
[1642281458548,0.11489323,43517.0,43514.0,0.5295426]
[1642281458749,0.11489323,43517.0,43513.0,0.00073007]
[1642281459350,1.65126044,43514.0,43508.0,0.76990846]
[1642281459552,0.11489957,43513.0,43508.0,0.76990846]
[1642281459749,0.11489957,43513.0,43509.0,0.00010314]
[1642281459949,0.17568348,43512.0,43509.0,0.00010314]
[1642281461199,0.22718348,43512.0,43509.0,0.00010314]
[1642281461399,0.375622,43511.0,43509.0,0.00010314]
[1642281461600,1.1,43509.0,43508.0,0.08821024]
[1642281461898,0.32689682,43509.0,43508.0,0.08821024]
[1642281462097,0.32689682,43509.0,43503.0,0.68211072]
[1642281462098,0.65,43508.0,43503.0,0.68211072]
[1642281462298,0.42609826,43507.0,43506.0,0.00041252]
[1642281462500,0.60882612,43507.0,43506.0,0.00041252]
[1642281462699,0.60882612,43507.0,43503.0,0.68211072]
[1642281462904,0.60882612,43507.0,43500.0,0.68211072]
[1642281463300,0.057462,43505.0,43500.0,0.63741072]
[1642281463501,0.17537354,43504.0,43500.0,0.63741072]
[1642281463700,0.17537354,43504.0,43501.0,6.876e-05]
[1642281463951,0.057462,43505.0,43501.0,6.876e-05]
[1642281464559,0.057462,43505.0,43499.0,0.00010314]
[1642281465354,0.052462,43505.0,43499.0,0.00010314]
[1642281466055,0.052462,43505.0,43500.0,0.00041075]
[1642281466857,0.375622,43504.0,43499.0,0.58509555]
[1642281467057,0.052462,43505.0,43500.0,0.00072033]
[1642281467256,0.052462,43505.0,43501.0,0.23331803]
[1642281468404,0.23,43504.0,43501.0,0.18953835]
[1642281469204,0.23,43504.0,43501.0,0.18881803]
[1642281472144,0.23,43504.0,43501.0,0.77381044]
[1642281472945,0.23,43504.0,43501.0,0.18881803]
[1642281473345,0.23,43504.0,43501.0,0.14391803]
[1642281473947,0.23,43504.0,43500.0,0.58579869]
[1642281474148,0.2230843,43504.0,43500.0,8.595e-05]
[1642281474349,0.2230843,43504.0,43500.0,0.00080628]
[1642281475202,0.2230843,43504.0,43500.0,8.595e-05]
[1642281475400,0.2230843,43504.0,43500.0,0.00080629]
[1642281476402,0.2230843,43504.0,43500.0,8.595e-05]
[1642281476604,0.2230843,43504.0,43500.0,0.00080629]
[1642281477607,0.2230843,43504.0,43500.0,8.595e-05]
[1642281477805,0.2230843,43504.0,43500.0,0.00080629]
[1642281478206,0.052462,43505.0,43500.0,0.00080629]
[1642281478509,0.052462,43505.0,43499.0,0.73680104]
[1642281478845,6.876e-05,43504.0,43499.0,0.73680104]
[1642281482250,6.876e-05,43504.0,43499.0,0.15180863]
[1642281483397,6.876e-05,43504.0,43498.0,1.15591406]
[1642281483600,6.876e-05,43504.0,43498.0,1.1552]
[1642281483799,6.876e-05,43504.0,43498.0,1.15591407]
[1642281484797,6.876e-05,43504.0,43498.0,1.1552]
[1642281485098,6.876e-05,43504.0,43498.0,1.15591407]
[1642281485601,6.876e-05,43504.0,43499.0,0.14957005]
[1642281486751,6.876e-05,43504.0,43499.0,0.58499241]
[1642281487653,6.876e-05,43504.0,43499.0,0.72961763]
[1642281488451,6.876e-05,43504.0,43499.0,0.14962522]
[1642281489452,0.05744342,43508.0,43504.0,6.91e-06]
[1642281490493,0.05744342,43508.0,43505.0,0.24212848]
[1642281492194,0.05744342,43508.0,43504.0,6.91e-06]
[1642281493396,0.05744342,43508.0,43503.0,1.41303355]
[1642281493596,0.05244342,43508.0,43503.0,1.41303355]
[1642281494544,0.05244342,43508.0,43503.0,0.92880908]
[1642281495144,0.05244342,43508.0,43504.0,0.68223484]
[1642281497144,0.05244342,43508.0,43506.0,0.58484404]
[1642281498199,0.05244342,43508.0,43507.0,0.58484404]
[1642281498400,0.05244342,43508.0,43507.0,0.54014404]
[1642281498601,0.05251218,43508.0,43507.0,0.54014404]
[1642281498799,0.28251218,43508.0,43507.0,0.54014404]
[1642281499201,0.28251218,43508.0,43505.0,0.68223484]
[1642281499403,0.39742018,43508.0,43504.0,0.68223484]
[1642281500200,0.28251218,43508.0,43504.0,0.68223484]
[1642281501203,0.28251218,43508.0,43506.0,0.68223484]
[1642281502246,0.28251218,43508.0,43507.0,0.68223484]
[1642281503046,0.28251218,43508.0,43503.0,0.24657424]
[1642281503446,0.28251218,43508.0,43503.0,0.20177424]
[1642281503846,0.28251218,43508.0,43504.0,0.14902027]
[1642281504047,0.28251218,43508.0,43507.0,0.68311505]
[1642281505099,0.28251218,43508.0,43503.0,0.20177424]
[1642281505301,0.28251218,43508.0,43504.0,0.15837372]
[1642281505502,0.057447,43509.0,43508.0,0.0735198]
[1642281505703,0.057447,43509.0,43505.0,2.15]
[1642281505902,0.00093203,43510.0,43505.0,2.15]
[1642281506102,0.00093203,43510.0,43503.0,0.20177424]
[1642281506304,0.00093203,43510.0,43504.0,0.15716538]
[1642281506503,0.11489138,43511.0,43504.0,0.15723414]
[1642281506704,0.00093204,43509.0,43504.0,0.15723414]
[1642281506909,0.05744342,43508.0,43504.0,0.15723414]
[1642281508506,0.05744342,43508.0,43504.0,0.11263414]
[1642281508951,0.05744342,43508.0,43505.0,0.61327574]
[1642281513397,0.05744342,43508.0,43505.0,0.56867574]
[1642281514599,0.05744342,43508.0,43504.0,6.876e-05]
[1642281515604,0.05744342,43508.0,43502.0,0.00010314]
[1642281515605,0.00123023,43507.0,43502.0,0.00010314]
[1642281515806,0.16642254,43506.0,43502.0,0.00010314]
[1642281516007,0.00121673,43503.0,43501.0,0.78696313]
[1642281516352,0.00121673,43503.0,43500.0,0.32721473]
[1642281516353,0.44223668,43502.0,43500.0,0.32721473]
[1642281516549,0.9,43500.0,43498.0,1.15591404]
[1642281516749,0.28269746,43499.0,43498.0,1.15591404]
[1642281516949,0.44258316,43499.0,43498.0,1.15591404]
[1642281517149,0.44258316,43499.0,43498.0,1.1559828]
[1642281517354,0.44258316,43499.0,43498.0,1.15526876]
[1642281518050,0.33098009,43499.0,43498.0,1.15526876]
[1642281518450,0.33098009,43499.0,43498.0,1.11056876]
[1642281521304,0.33098009,43499.0,43498.0,1.69803021]
[1642281522506,0.33098009,43499.0,43498.0,1.11056876]
[1642281523503,0.33098009,43499.0,43498.0,1.06576876]
[1642281523702,0.33098009,43499.0,43498.0,1.75076366]
[1642281524451,0.33098009,43499.0,43498.0,1.06576876]
[1642281525452,0.05747,43501.0,43498.0,1.06576876]
[1642281526554,0.24344872,43500.0,43499.0,0.58850692]
[1642281528500,0.24344872,43500.0,43499.0,0.54390692]
[1642281530309,0.24344872,43500.0,43498.0,1.75076366]
[1642281531454,0.05747,43501.0,43498.0,1.75076366]
[1642281532552,1.11154719,43499.0,43498.0,1.75076366]
[1642281532752,0.26154719,43499.0,43498.0,1.75076366]
[1642281533153,0.26154719,43499.0,43498.0,1.06576876]
[1642281533554,0.26154719,43499.0,43498.0,1.02116876]
[1642281535303,0.05747,43501.0,43498.0,1.02116876]
[1642281536706,0.33304186,43499.0,43498.0,1.02116876]
[1642281537307,0.33304186,43499.0,43498.0,1.60869667]
[1642281538013,0.33276516,43499.0,43498.0,1.60869667]
[1642281538410,0.33276516,43499.0,43498.0,1.02116876]
[1642281538609,0.33276516,43499.0,43498.0,0.97636876]
[1642281539251,0.10317312,43499.0,43498.0,0.97636876]
[1642281539751,0.05747,43501.0,43498.0,0.97636876]
[1642281540455,0.05747,43501.0,43499.0,0.58838398]
[1642281540856,0.33415072,43501.0,43499.0,0.58838398]
[1642281542358,0.33415072,43501.0,43498.0,1.56546681]
[1642281542603,0.33415072,43501.0,43498.0,1.10495874]
[1642281542802,2.25867635,43499.0,43497.0,0.58838398]
[1642281543007,2.82339907,43498.0,43497.0,0.24768486]
[1642281543208,2.2,43495.0,43488.0,0.78285132]
[1642281543404,2.2,43495.0,43484.0,0.78338102]
[1642281543405,0.00120523,43489.0,43484.0,0.78338102]
[1642281543605,0.00120523,43489.0,43484.0,0.73848102]
[1642281543606,0.2620368,43486.0,43484.0,0.73848102]
[1642281543803,0.58541453,43485.0,43484.0,0.73848102]
[1642281544201,0.58541453,43485.0,43484.0,0.73872169]
[1642281544403,0.58541453,43485.0,43484.0,0.00024067]
[1642281544604,0.96103653,43485.0,43484.0,0.00024067]
[1642281544804,0.55670636,43485.0,43478.0,0.00034381]
[1642281545103,0.18108436,43485.0,43478.0,0.00034381]
[1642281545304,0.29046493,43484.0,43478.0,0.00034381]
[1642281546105,0.34795893,43484.0,43479.0,0.10175191]
[1642281546563,0.34795893,43484.0,43480.0,0.00030943]
[1642281546762,0.057494,43484.0,43480.0,0.00030943]
[1642281547464,0.057494,43484.0,43481.0,0.10175191]
[1642281547865,0.057494,43484.0,43482.0,0.00027505]
[1642281548666,0.057494,43484.0,43481.0,0.00070827]
[1642281548866,0.0515,43486.0,43481.0,0.00070827]
[1642281549467,0.02304196,43487.0,43482.0,0.25344134]
[1642281549667,0.375622,43486.0,43482.0,0.25344134]
[1642281549866,0.23,43484.0,43482.0,0.25344134]
[1642281551915,0.23,43484.0,43481.0,0.25414961]
[1642281552114,0.23,43484.0,43481.0,0.25344134]
[1642281552315,0.23,43484.0,43481.0,0.25414961]
[1642281553116,0.23,43484.0,43482.0,0.25344134]
[1642281553624,0.23,43484.0,43481.0,0.20884134]
[1642281554055,0.23,43484.0,43480.0,0.3294524]
[1642281554452,0.23,43484.0,43480.0,0.32874412]
[1642281554655,0.23,43484.0,43480.0,0.32945242]
[1642281555752,0.23,43484.0,43480.0,0.32874412]
[1642281555954,0.23,43484.0,43480.0,0.32945242]
[1642281556853,0.23,43484.0,43480.0,0.32874412]
[1642281557054,0.23,43484.0,43480.0,0.32945242]
[1642281558005,0.23,43484.0,43480.0,0.32874412]
[1642281558204,0.23,43484.0,43480.0,0.32945242]
[1642281558708,0.23,43484.0,43480.0,0.28475242]
[1642281558906,0.225,43484.0,43480.0,0.28475242]
[1642281559304,0.225,43484.0,43480.0,0.28404412]
[1642281559504,0.225,43484.0,43480.0,0.12503646]
[1642281559704,0.11073928,43484.0,43480.0,0.12503646]
[1642281560406,0.11073928,43484.0,43480.0,0.12432816]
[1642281560608,0.11073928,43484.0,43480.0,0.12503646]
[1642281561750,0.11073928,43484.0,43480.0,0.12432816]
[1642281561948,0.11073928,43484.0,43480.0,0.12503646]
[1642281562949,0.11073928,43484.0,43480.0,0.12432816]
[1642281563148,0.11073928,43484.0,43480.0,0.12503646]
[1642281563350,0.10573928,43484.0,43480.0,0.12503646]
[1642281563750,0.10573928,43484.0,43480.0,0.08033646]
[1642281564151,0.10573928,43484.0,43480.0,0.07962816]
[1642281564351,0.10573928,43484.0,43480.0,0.08033646]
[1642281565197,0.10573928,43484.0,43480.0,0.07962816]
[1642281565399,0.10573928,43484.0,43481.0,0.16017451]
[1642281566503,0.10573928,43484.0,43481.0,0.13517451]
[1642281568400,0.10573928,43484.0,43481.0,0.92071471]
[1642281568700,0.10573928,43484.0,43481.0,0.87611471]
[1642281568954,0.10573928,43484.0,43481.0,0.7855402]
[1642281569157,0.10573928,43484.0,43482.0,0.09858186]
[1642281569554,0.10573928,43484.0,43482.0,0.25747141]
[1642281569957,0.08450465,43484.0,43482.0,0.25747141]
[1642281570355,0.08450465,43484.0,43483.0,1.65849409]
[1642281570656,0.08450465,43484.0,43483.0,0.25707595]
[1642281571257,0.08450465,43484.0,43483.0,0.09858186]
[1642281572459,0.08450465,43484.0,43482.0,0.25813737]
[1642281572910,0.08450465,43484.0,43483.0,2.08412206]
[1642281573109,0.05073132,43484.0,43483.0,0.88412206]
[1642281573510,0.05073132,43484.0,43483.0,0.09858186]
[1642281573808,0.05073132,43484.0,43483.0,0.05388186]
[1642281575812,0.05073132,43484.0,43483.0,0.60388186]
[1642281576213,0.05073132,43484.0,43483.0,0.05388186]
[1642281577851,0.05073132,43484.0,43483.0,0.50388186]
[1642281578050,0.05073132,43484.0,43483.0,0.05388186]
[1642281578251,0.04573132,43484.0,43483.0,0.05388186]
[1642281578653,0.04573132,43484.0,43483.0,0.00908186]
[1642281578853,0.04573132,43484.0,43483.0,0.90908186]
[1642281579253,0.04573132,43484.0,43483.0,1.69462206]
[1642281579456,0.04573132,43484.0,43483.0,0.79462206]
[1642281580304,0.03509925,43484.0,43483.0,1.75908186]
[1642281580532,0.03509925,43484.0,43483.0,0.00908186]
[1642281581103,0.03509925,43484.0,43483.0,0.79532526]
[1642281581704,0.03509925,43484.0,43483.0,0.00908186]
[1642281581907,0.02337289,43484.0,43483.0,0.00908186]
[1642281583705,0.02337289,43484.0,43482.0,0.75072124]
[1642281583956,0.02337289,43484.0,43481.0,0.00070826]
[1642281584557,0.02337289,43484.0,43480.0,0.07962816]
[1642281584763,0.02337289,43484.0,43480.0,0.08033644]
[1642281585859,0.02337289,43484.0,43480.0,0.08033646]
[1642281586958,0.02337289,43484.0,43480.0,0.07962816]
[1642281587159,0.02337289,43484.0,43481.0,0.15656241]
[1642281588222,0.02337289,43484.0,43482.0,0.0515]
[1642281588420,0.02337289,43484.0,43483.0,2.38204889]
[1642281588619,0.02337289,43484.0,43483.0,2.26522641]
[1642281588820,6.876e-05,43486.0,43485.0,0.00123754]
[1642281589019,6.876e-05,43486.0,43485.0,2.56309278]
[1642281589421,6.876e-05,43486.0,43485.0,2.66309278]
[1642281589621,6.876e-05,43486.0,43485.0,5.4287262]
[1642281589821,6.876e-05,43486.0,43485.0,5.70345216]
[1642281590024,6.876e-05,43486.0,43485.0,3.31746879]
[1642281591219,8.76e-06,43486.0,43485.0,2.63419706]
[1642281591852,0.6321182,43500.0,43495.0,5.124e-05]
[1642281592254,0.00022348,43499.0,43495.0,5.124e-05]
[1642281592657,0.00020629,43498.0,43495.0,5.124e-05]
[1642281593054,0.0001891,43497.0,43495.0,5.124e-05]
[1642281593354,0.00017191,43496.0,43495.0,5.124e-05]
[1642281593754,0.00017191,43496.0,43493.0,0.50407689]
[1642281593955,0.00017191,43496.0,43493.0,0.15933864]
[1642281594155,0.00015472,43495.0,43493.0,0.15933864]
[1642281594555,0.00013753,43494.0,43493.0,0.15933864]
[1642281594756,0.00013753,43494.0,43493.0,0.31437168]
[1642281596217,0.00013753,43494.0,43493.0,0.15933864]
[1642281596618,0.00013753,43494.0,43492.0,0.0515]
[1642281597017,0.00012033,43493.0,43492.0,0.0515]
[1642281597218,0.00012033,43493.0,43491.0,0.00070185]
[1642281597219,0.27617924,43493.0,43491.0,0.00070185]
[1642281597620,0.05729642,43496.0,43492.0,1.1]
[1642281597825,0.05747,43495.0,43490.0,0.00070189]
[1642281598021,0.05247,43495.0,43490.0,0.00070189]
[1642281598421,0.05839791,43499.0,43490.0,0.00070189]
[1642281598621,0.25204136,43497.0,43490.0,0.00070189]
[1642281598857,0.25204136,43497.0,43489.0,0.11768289]
[1642281599057,0.48193707,43497.0,43488.0,0.78633914]
[1642281599859,0.41327117,43493.0,43490.0,0.04907392]
[1642281600363,0.05747549,43492.0,43490.0,0.04907392]
[1642281600561,0.22941139,43492.0,43490.0,0.04907392]
[1642281600761,0.22941139,43492.0,43488.0,0.00040448]
[1642281600762,0.375622,43491.0,43488.0,0.0494784]
[1642281600959,0.05747549,43492.0,43488.0,0.0494784]
[1642281601160,0.31595327,43489.0,43488.0,0.0494784]
[1642281601458,0.31595327,43489.0,43488.0,0.04971827]
[1642281601861,0.23219315,43492.0,43488.0,0.04971827]
[1642281602060,0.05747549,43492.0,43488.0,0.04971827]
[1642281602460,0.375622,43491.0,43490.0,0.03159532]
[1642281602909,0.70324314,43491.0,43490.0,0.03159532]
[1642281603707,0.70324314,43491.0,43490.0,0.03596924]
[1642281604306,0.70324314,43491.0,43488.0,0.00064434]
[1642281604905,0.70324314,43491.0,43488.0,6.876e-05]
[1642281605305,0.375622,43491.0,43487.0,0.0005756]
[1642281605514,0.057476,43493.0,43487.0,0.0005756]
[1642281606108,0.057476,43493.0,43486.0,0.25513726]
[1642281606352,0.057476,43493.0,43488.0,0.00052666]
[1642281607255,0.057476,43493.0,43487.0,8.595e-05]
[1642281607555,0.037476,43493.0,43488.0,0.00052665]
[1642281607755,0.00086739,43496.0,43488.0,0.00052665]
[1642281607958,0.00086739,43496.0,43491.0,0.26607913]
[1642281608556,0.057467,43497.0,43494.0,0.68696644]
[1642281608755,0.00086742,43496.0,43494.0,0.64236644]
[1642281609156,0.00086742,43496.0,43495.0,0.64236644]
[1642281609756,0.057467,43497.0,43495.0,0.64236644]
[1642281610201,0.057467,43497.0,43493.0,0.23149629]
[1642281611103,0.05833991,43497.0,43489.0,0.78633914]
[1642281611902,0.05833991,43497.0,43488.0,1.07521686]
[1642281612102,0.057467,43497.0,43489.0,0.15577976]
[1642281612303,0.00087292,43496.0,43491.0,0.23164559]
[1642281613307,0.057467,43497.0,43491.0,0.23164559]
[1642281613505,0.00087137,43496.0,43491.0,0.23164559]
[1642281613704,0.00087137,43496.0,43491.0,0.18694559]
[1642281613958,0.2922009,43494.0,43489.0,0.78633914]
[1642281614357,0.4071559,43494.0,43489.0,0.78633914]
[1642281614558,0.4071559,43494.0,43487.0,0.78642509]
[1642281614759,0.4071559,43494.0,43488.0,0.00053658]
[1642281615356,0.42616676,43490.0,43488.0,0.00053658]
[1642281615557,0.48364676,43490.0,43488.0,0.00053658]
[1642281615759,0.48364676,43490.0,43487.0,8.595e-05]
[1642281615963,0.48364676,43490.0,43487.0,0.00062256]
[1642281616160,0.48364676,43490.0,43487.0,0.00053661]
[1642281616860,0.48364676,43490.0,43485.0,0.00012033]
[1642281617060,0.48364676,43490.0,43486.0,0.00053773]
[1642281617461,0.48364676,43490.0,43487.0,8.595e-05]
[1642281618507,0.48364676,43490.0,43486.0,0.00053773]
[1642281618704,0.48364676,43490.0,43487.0,8.595e-05]
[1642281618904,0.48364676,43490.0,43483.0,0.74236282]
[1642281619204,0.48364676,43490.0,43487.0,0.09521645]
[1642281619405,0.48364676,43490.0,43483.0,0.83757927]
[1642281620206,0.48364676,43490.0,43484.0,0.1974569]
[1642281620808,0.48364676,43490.0,43485.0,0.09521645]
[1642281620809,0.27664105,43487.0,43485.0,0.09521645]
[1642281621210,0.48364676,43490.0,43485.0,0.09521645]
[1642281621956,0.48364676,43490.0,43489.0,0.6880806]
[1642281622755,0.114968,43489.0,43486.0,0.09521645]
[1642281623454,0.375622,43488.0,43484.0,0.0005366]
[1642281623658,0.15882444,43487.0,43484.0,0.0005366]
[1642281623854,0.15882444,43487.0,43480.0,0.29005056]
[1642281624456,0.64059949,43490.0,43480.0,0.29005056]
[1642281624654,0.64428509,43490.0,43480.0,0.29005056]
[1642281624954,0.58680587,43490.0,43480.0,0.29005056]
[1642281625604,0.00053217,43489.0,43480.0,0.29005056]
[1642281625805,0.00053217,43489.0,43482.0,0.78637629]
[1642281626208,0.00053217,43489.0,43483.0,6.876e-05]
[1642281626606,0.58680587,43490.0,43483.0,6.876e-05]
[1642281626805,0.00053218,43489.0,43483.0,6.876e-05]
[1642281627205,0.00053218,43489.0,43482.0,8.595e-05]
[1642281627808,0.0584116,43489.0,43482.0,0.00077269]
[1642281628008,0.15800255,43488.0,43482.0,0.00077269]
[1642281628206,0.15800255,43488.0,43483.0,6.876e-05]
[1642281628407,0.0009322,43489.0,43483.0,6.876e-05]
[1642281628858,0.58412499,43490.0,43481.0,0.74233179]
[1642281629056,8.596e-05,43488.0,43482.0,0.00068674]
[1642281629252,0.00103534,43489.0,43482.0,0.00068674]
[1642281629452,6.876e-05,43487.0,43482.0,0.00068674]
[1642281629653,8.595e-05,43488.0,43482.0,0.00068674]
[1642281629953,6.876e-05,43487.0,43482.0,0.00068674]
[1642281630152,6.876e-05,43487.0,43480.0,0.29005056]
[1642281630353,0.00053392,43487.0,43480.0,0.29005056]
[1642281631257,8.595e-05,43488.0,43480.0,0.29005056]
[1642281631456,0.00053391,43486.0,43480.0,0.28505056]
[1642281631853,0.00053391,43486.0,43479.0,0.00012876]
[1642281632055,0.15941001,43486.0,43479.0,0.00012876]
[1642281632456,0.1588761,43486.0,43477.0,0.00016314]
[1642281632712,0.1588761,43486.0,43480.0,0.00068092]
[1642281632713,0.00121549,43484.0,43480.0,0.00068092]
[1642281632910,0.00126388,43481.0,43480.0,0.00068092]
[1642281633110,0.00126388,43481.0,43476.0,0.00018033]
[1642281633111,2.20126388,43481.0,43476.0,0.00018033]
[1642281633411,0.00121726,43478.0,43476.0,0.00018033]
[1642281633612,2.575622,43477.0,43476.0,0.00018033]
[1642281633810,1.8,43476.0,43474.0,1.01512371]
[1642281634021,0.86826012,43475.0,43474.0,0.96962371]
[1642281634210,0.86326012,43475.0,43474.0,0.96962371]
[1642281634812,1.04898346,43475.0,43474.0,0.96962371]
[1642281635012,0.73782222,43475.0,43474.0,0.96962371]
[1642281635611,0.36220022,43475.0,43474.0,0.96962371]
[1642281635811,0.00128181,43475.0,43474.0,0.96962371]
[1642281636012,0.00128181,43475.0,43473.0,0.0022]
[1642281636356,0.375622,43474.0,43473.0,0.0022]
[1642281636662,0.375622,43474.0,43473.0,0.13397541]
[1642281637956,0.375622,43474.0,43473.0,0.0022]
[1642281638157,0.375622,43474.0,43473.0,0.13665544]
[1642281638960,0.375622,43474.0,43473.0,0.09185544]
[1642281639164,0.375622,43474.0,43472.0,0.0011]
[1642281639362,0.375622,43474.0,43473.0,0.11315544]
[1642281641611,0.605622,43474.0,43472.0,0.0011]
[1642281641814,0.605622,43474.0,43473.0,0.11247797]
[1642281642011,2.80687762,43474.0,43473.0,0.11027797]
[1642281642211,2.80687762,43474.0,43472.0,0.0011]
[1642281642212,0.60687762,43474.0,43472.0,0.0011]
[1642281642612,0.60687762,43474.0,43473.0,0.04691454]
[1642281642812,0.60687762,43474.0,43472.0,0.0011]
[1642281643013,0.60687762,43474.0,43473.0,0.0367968]
[1642281644054,0.057506,43472.0,43462.0,0.0033]
[1642281644260,0.11501138,43472.0,43462.0,0.0033]
[1642281644460,0.11501138,43472.0,43466.0,0.0001719]
[1642281644656,0.11501138,43472.0,43466.0,0.15090998]
[1642281644859,0.11501138,43472.0,43466.0,0.15096689]
[1642281645058,0.11501138,43472.0,43467.0,0.00015471]
[1642281645559,0.11501138,43472.0,43467.0,0.01160474]
[1642281646059,0.11501138,43472.0,43468.0,0.00013752]
[1642281646458,0.375622,43471.0,43468.0,0.00013752]
[1642281647260,0.40855613,43469.0,43468.0,0.00013752]
[1642281647606,0.78417813,43469.0,43468.0,0.00013752]
[1642281648608,0.375622,43469.0,43468.0,0.00013752]
[1642281648807,0.11501138,43472.0,43467.0,0.00015471]
[1642281649010,0.11501138,43472.0,43465.0,0.34415014]
[1642281649209,6.876e-05,43471.0,43465.0,0.34415014]
[1642281649907,0.4329772,43471.0,43463.0,0.0044]
[1642281650707,0.4329772,43471.0,43464.0,0.0011977]
[1642281652859,0.4329772,43471.0,43464.0,0.0005336]
[1642281653060,0.4329772,43471.0,43464.0,0.0011977]
[1642281653458,6.876e-05,43471.0,43464.0,0.1662989]
[1642281653959,6.876e-05,43471.0,43463.0,0.27102559]
[1642281654359,6.876e-05,43471.0,43464.0,0.0006641]
[1642281655110,6.876e-05,43471.0,43464.0,0.13424323]
[1642281655408,6.876e-05,43471.0,43464.0,0.13357913]
[1642281655609,0.0009324,43470.0,43464.0,0.13357913]
[1642281655809,0.0009324,43470.0,43464.0,0.13483628]
[1642281656010,0.0009324,43470.0,43463.0,0.27102559]
[1642281656412,6.876e-05,43471.0,43463.0,0.27102559]
[1642281656814,0.0009324,43469.0,43463.0,0.27102559]
[1642281657315,24.99054146,43461.0,43460.0,0.15631679]
[1642281657513,24.99054146,43461.0,43459.0,0.21464948]
[1642281657812,24.99054146,43461.0,43460.0,0.00012033]
[1642281658411,23.47999174,43461.0,43460.0,0.00012033]
[1642281659089,23.47999174,43461.0,43458.0,0.00065313]
[1642281659090,0.4509664,43459.0,43458.0,0.00065313]
[1642281660092,0.4509664,43459.0,43456.0,0.0011]
[1642281660391,0.75845737,43459.0,43456.0,0.00175318]
[1642281660990,0.98845737,43459.0,43456.0,0.00175318]
[1642281661391,0.98845737,43459.0,43456.0,0.0011]
[1642281662293,0.98830337,43459.0,43456.0,0.0011]
[1642281664115,0.98830337,43459.0,43454.0,0.0011]
[1642281664515,0.98830337,43459.0,43455.0,8.595e-05]
[1642281665716,0.53749097,43459.0,43455.0,8.595e-05]
[1642281665916,0.23,43459.0,43455.0,8.595e-05]
[1642281666956,0.27256347,43457.0,43455.0,8.595e-05]
[1642281667358,0.23,43459.0,43455.0,8.595e-05]
[1642281667963,0.23,43459.0,43455.0,0.05158595]
[1642281668258,0.23,43459.0,43456.0,6.876e-05]
[1642281669057,0.23,43459.0,43455.0,0.00686876]
[1642281673414,0.23,43459.0,43456.0,0.00555538]
[1642281673615,0.23,43459.0,43456.0,0.00605121]
[1642281673857,0.23,43459.0,43455.0,0.01368568]
[1642281674057,0.23,43459.0,43456.0,0.00635428]
[1642281674262,0.23,43459.0,43456.0,0.0076208]
[1642281674459,0.23,43459.0,43455.0,0.00686876]
[1642281674858,0.31249856,43457.0,43455.0,0.00686876]
[1642281676659,0.23,43459.0,43455.0,0.00686876]
[1642281677903,0.30935132,43458.0,43455.0,0.00686876]
[1642281678607,0.30935132,43458.0,43455.0,0.89083288]
[1642281679007,0.23,43459.0,43455.0,0.94613288]
[1642281679208,0.23,43459.0,43456.0,0.20022]
[1642281680003,0.53986475,43459.0,43456.0,0.20022]
[1642281680506,0.23,43459.0,43456.0,0.20022]
[1642281684158,0.23,43459.0,43456.0,0.15562]
[1642281684559,0.23,43459.0,43454.0,0.0011]
[1642281686525,0.23,43459.0,43454.0,0.00683885]
[1642281686725,0.23,43459.0,43454.0,0.00819714]
[1642281686926,0.23,43459.0,43454.0,0.0011]
[1642281689157,0.23,43459.0,43453.0,0.00284779]
[1642281689559,0.23,43459.0,43454.0,0.0515]
[1642281692714,0.35806537,43455.0,43453.0,0.00064779]
[1642281693512,1.93481805,43454.0,43453.0,0.00064779]
[1642281693711,1.93481805,43454.0,43450.0,0.0016297]
[1642281693712,0.28481805,43454.0,43450.0,0.0016297]
[1642281693916,0.28481805,43454.0,43452.0,0.00064783]
[1642281694115,0.95,43453.0,43447.0,0.00076348]
[1642281694310,0.28481805,43454.0,43447.0,0.00076348]
[1642281695613,0.00124897,43457.0,43447.0,0.00076348]
[1642281695814,0.00124897,43457.0,43443.0,0.0011]
[1642281695815,0.00124897,43457.0,43443.0,0.00016348]
[1642281696014,8.595e-05,43456.0,43444.0,0.35]
[1642281696213,8.595e-05,43456.0,43445.0,0.12206041]
[1642281696457,6.876e-05,43455.0,43445.0,0.12206041]
[1642281696655,0.29253417,43455.0,43448.0,0.26731425]
[1642281696956,0.29246541,43455.0,43448.0,0.26731425]
[1642281697155,0.29246541,43455.0,43446.0,8.595e-05]
[1642281697555,0.29246541,43455.0,43449.0,0.0006425]
[1642281698157,0.28746541,43455.0,43449.0,0.0006425]
[1642281698557,0.28746541,43455.0,43447.0,0.0515]
[1642281698757,0.28746541,43455.0,43450.0,0.00064249]
[1642281699156,0.28501553,43455.0,43450.0,4.249e-05]
[1642281699357,0.3285219,43456.0,43450.0,4.249e-05]
[1642281699758,6.876e-05,43455.0,43447.0,0.0515]
[1642281700607,0.31024612,43454.0,43447.0,0.30224449]
[1642281701010,0.31024612,43454.0,43447.0,0.40224449]
[1642281702008,6.876e-05,43455.0,43447.0,0.40224449]
[1642281702207,6.876e-05,43455.0,43447.0,0.51592557]
[1642281702408,0.00100127,43455.0,43448.0,0.00063756]
[1642281702808,0.00100127,43455.0,43449.0,0.0075288]
[1642281703011,0.00100127,43455.0,43454.0,1.01320494]
[1642281703407,6.876e-05,43455.0,43454.0,1.11320494]
[1642281703608,6.876e-05,43455.0,43454.0,0.1]
[1642281704264,6.876e-05,43455.0,43449.0,0.00774904]
[1642281704455,6.876e-05,43455.0,43450.0,0.05854407]
[1642281704656,0.00013752,43454.0,43451.0,0.0515]
[1642281704856,0.00013752,43454.0,43452.0,0.25172]
[1642281705055,0.00012033,43453.0,43452.0,0.0515]
[1642281705256,0.00012033,43453.0,43452.0,1.3015]
[1642281706055,0.00012033,43453.0,43452.0,1.50232]
[1642281706255,0.00012033,43453.0,43452.0,1.60232]
[1642281710612,0.00012033,43453.0,43452.0,0.25232]
[1642281713263,0.00012033,43453.0,43452.0,0.70232]
[1642281714965,0.00012033,43453.0,43452.0,0.25232]
[1642281716618,0.00012033,43453.0,43452.0,0.0515]
[1642281716817,0.00012033,43453.0,43452.0,0.93664553]
[1642281717222,0.00012033,43453.0,43452.0,0.0515]
[1642281717817,0.00012033,43453.0,43452.0,0.93666204]
[1642281719262,0.00012033,43453.0,43452.0,0.89206204]
[1642281722814,0.00012033,43453.0,43452.0,0.0069]
[1642281723612,0.00012033,43453.0,43452.0,0.89209948]
[1642281724211,0.00012033,43453.0,43452.0,0.84739948]
[1642281724614,0.00012033,43453.0,43449.0,0.35089623]
[1642281724811,0.00012033,43453.0,43450.0,0.21983077]
[1642281725020,0.00010314,43452.0,43450.0,0.21983077]
[1642281725213,0.00010314,43452.0,43450.0,0.2073357]
[1642281725414,8.595e-05,43451.0,43450.0,0.20782006]
[1642281726017,8.595e-05,43451.0,43450.0,0.2064418]
[1642281726217,8.595e-05,43451.0,43450.0,0.85642148]
[1642281726462,8.595e-05,43451.0,43450.0,0.7015]